[Event "Titled Tuesday Blitz August 23 Early 2022"]
[White "Szpar, Milosz"]
[Black "Sarana, Alexey"]
[WhiteFideId "1184989"]
[BlackFideId "24133795"]
[WhiteElo "2422"]
[BlackElo "2666"]
[Result "0-1"]
[Round "03"]
[TimeControl "180+1"]
[Date "2022.08.23"]
[WhiteClock "0:00:04"]
[BlackClock "0:00:57"]

1. Nf3 {[%clk 0:03:00]}  d5 {[%clk 0:02:59]} 2. e3 {[%clk 0:03:00]}  c5 {[%clk 0:02:56]} 3. Bb5+ {[%clk 0:02:59]}  Nc6 {[%clk 0:02:55]} 4. b3 {[%clk 0:02:57]}  f6 {[%clk 0:02:54]} 5. c4 {[%clk 0:02:53]}  d4 {[%clk 0:02:53]} 6. exd4 {[%clk 0:02:52]}  cxd4 {[%clk 0:02:52]} 7. O-O {[%clk 0:02:52]}  e5 {[%clk 0:02:51]} 8. d3 {[%clk 0:02:41]}  Bd6 {[%clk 0:02:48]} 9. Nbd2 {[%clk 0:02:36]}  Ne7 {[%clk 0:02:47]} 10. Ne4 {[%clk 0:02:36]}  Bc7 {[%clk 0:02:44]} 11. Ba3 {[%clk 0:02:35]}  O-O {[%clk 0:02:41]} 12. h3 {[%clk 0:02:24]}  a6 {[%clk 0:02:40]} 13. Bxc6 {[%clk 0:02:23]}  bxc6 {[%clk 0:02:39]} 14. Re1 {[%clk 0:02:21]}  Rf7 {[%clk 0:02:38]} 15. Qe2 {[%clk 0:02:10]}  Ng6 {[%clk 0:02:38]} 16. Ng3 {[%clk 0:01:47]}  f5 {[%clk 0:02:29]} 17. Qd2 {[%clk 0:01:38]}  h6 {[%clk 0:02:28]} 18. Bc5 {[%clk 0:01:26]}  Kh7 {[%clk 0:02:15]} 19. b4 {[%clk 0:01:27]}  Qf6 {[%clk 0:02:15]} 20. Nh5 {[%clk 0:01:24]}  Qd8 {[%clk 0:02:12]} 21. Ng3 {[%clk 0:01:23]}  Bd7 {[%clk 0:01:47]} 22. a4 {[%clk 0:01:23]}  Rb8 {[%clk 0:01:46]} 23. Rab1 {[%clk 0:01:23]}  Qf6 {[%clk 0:01:45]} 24. Nh5 {[%clk 0:01:21]}  Qd8 {[%clk 0:01:45]} 25. Ng3 {[%clk 0:01:22]}  Rb7 {[%clk 0:01:45]} 26. Rb2 {[%clk 0:01:16]}  Qb8 {[%clk 0:01:45]} 27. Reb1 {[%clk 0:01:16]}  Nf4 {[%clk 0:01:43]} 28. Ne2 {[%clk 0:00:59]}  Ne6 {[%clk 0:01:40]} 29. Qc2 {[%clk 0:00:38]}  a5 {[%clk 0:01:37]} 30. Nd2 {[%clk 0:00:37]}  axb4 {[%clk 0:01:23]} 31. Bxb4 {[%clk 0:00:36]}  c5 {[%clk 0:01:23]} 32. Ba3 {[%clk 0:00:36]}  Rxb2 {[%clk 0:01:22]} 33. Bxb2 {[%clk 0:00:32]}  Qa8 {[%clk 0:01:20]} 34. Ra1 {[%clk 0:00:31]}  Bc6 {[%clk 0:01:20]} 35. f3 {[%clk 0:00:31]}  Rd7 {[%clk 0:01:11]} 36. a5 {[%clk 0:00:30]}  e4 {[%clk 0:01:10]} 37. dxe4 {[%clk 0:00:19]}  d3 {[%clk 0:01:09]} 38. Qb1 {[%clk 0:00:14]}  dxe2 {[%clk 0:01:09]} 39. exf5 {[%clk 0:00:14]}  Nf4 {[%clk 0:01:02]} 40. f6+ {[%clk 0:00:15]}  g6 {[%clk 0:01:03]} 41. Bc3 {[%clk 0:00:12]}  Nd3 {[%clk 0:01:00]} 42. Nb3 {[%clk 0:00:09]}  Bxf3 {[%clk 0:00:56]} 43. gxf3 {[%clk 0:00:08]}  Qxf3 {[%clk 0:00:57]} 44. Nxc5 {[%clk 0:00:05]}  Qf2+ {[%clk 0:00:56]} 45. Kh1 {[%clk 0:00:04]}  Qh2# {[%clk 0:00:57]} 0-1


[Site "https://www.chess.com"]

[Event "Titled Tuesday Blitz August 23 Early 2022"]
[White "Theodorou, Nikolas"]
[Black "Guz, Ari"]
[WhiteFideId "4262875"]
[BlackFideId "2825759"]
[WhiteElo "2484"]
[BlackElo "1913"]
[Result "1-0"]
[Round "03"]
[TimeControl "180+1"]
[Date "2022.08.23"]
[WhiteClock "0:02:32"]
[BlackClock "0:02:14"]

1. Nf3 {[%clk 0:03:00]}  d5 {[%clk 0:02:58]} 2. g3 {[%clk 0:03:01]}  Nc6 {[%clk 0:02:58]} 3. d4 {[%clk 0:02:59]}  g6 {[%clk 0:02:57]} 4. Bg2 {[%clk 0:03:00]}  Bg7 {[%clk 0:02:58]} 5. O-O {[%clk 0:03:00]}  e6 {[%clk 0:02:58]} 6. c3 {[%clk 0:02:59]}  Nge7 {[%clk 0:02:58]} 7. Bf4 {[%clk 0:03:00]}  O-O {[%clk 0:02:58]} 8. Nbd2 {[%clk 0:03:00]}  a5 {[%clk 0:02:57]} 9. e4 {[%clk 0:03:01]}  dxe4 {[%clk 0:02:55]} 10. Nxe4 {[%clk 0:03:02]}  Nd5 {[%clk 0:02:56]} 11. Bg5 {[%clk 0:03:02]}  f6 {[%clk 0:02:55]} 12. Bd2 {[%clk 0:03:03]}  Nce7 {[%clk 0:02:50]} 13. Re1 {[%clk 0:03:00]}  a4 {[%clk 0:02:38]} 14. Nc5 {[%clk 0:02:49]}  Qd6 {[%clk 0:02:32]} 15. Nxa4 {[%clk 0:02:45]}  b6 {[%clk 0:02:27]} 16. c4 {[%clk 0:02:45]}  Bd7 {[%clk 0:02:25]} 17. cxd5 {[%clk 0:02:41]}  Bxa4 {[%clk 0:02:25]} 18. b3 {[%clk 0:02:42]}  Bd7 {[%clk 0:02:25]} 19. dxe6 {[%clk 0:02:42]}  Bxe6 {[%clk 0:02:25]} 20. Qe2 {[%clk 0:02:43]}  Kf7 {[%clk 0:02:24]} 21. Bb4 {[%clk 0:02:35]}  Qd7 {[%clk 0:02:15]} 22. Bxe7 {[%clk 0:02:32]}  Qxe7 {[%clk 0:02:14]} 23. d5 {[%clk 0:02:32]} 1-0


[Site "https://www.chess.com"]

[Event "Titled Tuesday Blitz August 23 Early 2022"]
[White "Timofeev, Artyom"]
[Black "Shuvalova, Polina"]
[WhiteFideId "4140419"]
[BlackFideId "24171760"]
[WhiteElo "2578"]
[BlackElo "2330"]
[Result "1-0"]
[Round "03"]
[TimeControl "180+1"]
[Date "2022.08.23"]
[WhiteClock "0:00:11"]
[BlackClock "0:00:07"]

1. e4 {[%clk 0:03:00]}  c6 {[%clk 0:03:00]} 2. Nf3 {[%clk 0:02:59]}  d5 {[%clk 0:03:00]} 3. d3 {[%clk 0:03:00]}  g6 {[%clk 0:02:59]} 4. c3 {[%clk 0:02:57]}  Bg7 {[%clk 0:03:00]} 5. Bf4 {[%clk 0:02:56]}  Nf6 {[%clk 0:02:59]} 6. Nbd2 {[%clk 0:02:55]}  O-O {[%clk 0:02:58]} 7. h3 {[%clk 0:02:55]}  c5 {[%clk 0:02:58]} 8. Be2 {[%clk 0:02:34]}  Nc6 {[%clk 0:02:58]} 9. O-O {[%clk 0:02:34]}  Re8 {[%clk 0:02:57]} 10. e5 {[%clk 0:02:32]}  Nd7 {[%clk 0:02:57]} 11. d4 {[%clk 0:02:30]}  cxd4 {[%clk 0:02:57]} 12. cxd4 {[%clk 0:02:30]}  Nf8 {[%clk 0:02:56]} 13. Be3 {[%clk 0:02:28]}  Qb6 {[%clk 0:02:56]} 14. Nb3 {[%clk 0:02:20]}  Bf5 {[%clk 0:02:57]} 15. Qd2 {[%clk 0:02:15]}  a5 {[%clk 0:02:56]} 16. Nc5 {[%clk 0:02:08]}  Be4 {[%clk 0:02:51]} 17. Ng5 {[%clk 0:02:06]}  Bf5 {[%clk 0:02:38]} 18. g4 {[%clk 0:02:06]}  Bc8 {[%clk 0:02:30]} 19. f4 {[%clk 0:02:05]}  Qb4 {[%clk 0:02:30]} 20. Rfd1 {[%clk 0:01:59]}  Qxd2 {[%clk 0:02:28]} 21. Rxd2 {[%clk 0:01:59]}  h6 {[%clk 0:02:20]} 22. Nf3 {[%clk 0:01:59]}  Ne6 {[%clk 0:02:20]} 23. Nxe6 {[%clk 0:01:56]}  Bxe6 {[%clk 0:02:19]} 24. a3 {[%clk 0:01:37]}  Bd7 {[%clk 0:02:18]} 25. Kf2 {[%clk 0:01:36]}  a4 {[%clk 0:02:15]} 26. Rc2 {[%clk 0:01:34]}  Rec8 {[%clk 0:02:14]} 27. Rac1 {[%clk 0:01:33]}  e6 {[%clk 0:02:04]} 28. Ne1 {[%clk 0:01:27]}  Na5 {[%clk 0:01:58]} 29. Rxc8+ {[%clk 0:01:26]}  Rxc8 {[%clk 0:01:59]} 30. Rxc8+ {[%clk 0:01:26]}  Bxc8 {[%clk 0:02:00]} 31. Bb5 {[%clk 0:01:23]}  Nc4 {[%clk 0:01:57]} 32. Bc1 {[%clk 0:01:22]}  Nb6 {[%clk 0:01:54]} 33. Bd2 {[%clk 0:01:17]}  Bd7 {[%clk 0:01:52]} 34. Bd3 {[%clk 0:01:17]}  Nc4 {[%clk 0:01:47]} 35. Bc3 {[%clk 0:01:17]}  f6 {[%clk 0:01:42]} 36. Nc2 {[%clk 0:01:10]}  fxe5 {[%clk 0:01:41]} 37. fxe5 {[%clk 0:01:09]}  Kf7 {[%clk 0:01:38]} 38. h4 {[%clk 0:01:02]}  Bf8 {[%clk 0:01:38]} 39. Kf3 {[%clk 0:00:56]}  Be7 {[%clk 0:01:37]} 40. h5 {[%clk 0:00:56]}  gxh5 {[%clk 0:01:36]} 41. gxh5 {[%clk 0:00:56]}  Bg5 {[%clk 0:01:35]} 42. Bg6+ {[%clk 0:00:49]}  Ke7 {[%clk 0:01:35]} 43. Ne1 {[%clk 0:00:48]}  Bb5 {[%clk 0:01:32]} 44. Nd3 {[%clk 0:00:48]}  b6 {[%clk 0:01:28]} 45. Bb4+ {[%clk 0:00:47]}  Kd7 {[%clk 0:01:26]} 46. Bc3 {[%clk 0:00:39]}  Ke7 {[%clk 0:01:25]} 47. Nf4 {[%clk 0:00:37]}  Bd7 {[%clk 0:01:12]} 48. Bb4+ {[%clk 0:00:35]}  Kd8 {[%clk 0:01:12]} 49. Bf7 {[%clk 0:00:31]}  Bxf4 {[%clk 0:00:46]} 50. Kxf4 {[%clk 0:00:31]}  Nxb2 {[%clk 0:00:47]} 51. Bf8 {[%clk 0:00:31]}  Nc4 {[%clk 0:00:48]} 52. Bxh6 {[%clk 0:00:29]}  Be8 {[%clk 0:00:41]} 53. Bxe6 {[%clk 0:00:23]}  Bxh5 {[%clk 0:00:36]} 54. Bf8 {[%clk 0:00:23]}  Ke8 {[%clk 0:00:22]} 55. Bb4 {[%clk 0:00:20]}  Bf7 {[%clk 0:00:22]} 56. Bg4 {[%clk 0:00:16]}  Nb2 {[%clk 0:00:16]} 57. Kg5 {[%clk 0:00:14]}  Nd3 {[%clk 0:00:14]} 58. Bd6 {[%clk 0:00:14]}  Nf2 {[%clk 0:00:14]} 59. e6 {[%clk 0:00:10]}  Bg8 {[%clk 0:00:09]} 60. Bh5+ {[%clk 0:00:09]}  Kd8 {[%clk 0:00:08]} 61. e7+ {[%clk 0:00:10]}  Kd7 {[%clk 0:00:08]} 62. e8=Q+ {[%clk 0:00:10]}  Kxd6 {[%clk 0:00:08]} 63. Qxg8 {[%clk 0:00:10]}  Ne4+ {[%clk 0:00:08]} 64. Kf4 {[%clk 0:00:11]}  Nf6 {[%clk 0:00:08]} 65. Qd8+ {[%clk 0:00:11]}  Nd7 {[%clk 0:00:08]} 66. Bg4 {[%clk 0:00:11]}  Kc6 {[%clk 0:00:07]} 67. Qxd7# {[%clk 0:00:11]} 1-0


[Site "https://www.chess.com"]

[Event "Titled Tuesday Blitz August 23 Early 2022"]
[White "Vachylia, Andrii"]
[Black "Janik, Igor"]
[WhiteFideId "14137224"]
[BlackFideId "1159259"]
[WhiteElo "2318"]
[BlackElo "2456"]
[Result "0-1"]
[Round "03"]
[TimeControl "180+1"]
[Date "2022.08.23"]
[WhiteClock "0:00:30"]
[BlackClock "0:00:24"]

1. e4 {[%clk 0:02:58]}  c6 {[%clk 0:03:00]} 2. d4 {[%clk 0:02:54]}  d5 {[%clk 0:03:00]} 3. Nc3 {[%clk 0:02:52]}  a6 {[%clk 0:02:59]} 4. Nf3 {[%clk 0:02:39]}  Bg4 {[%clk 0:02:58]} 5. Be3 {[%clk 0:02:38]}  e6 {[%clk 0:02:57]} 6. h3 {[%clk 0:02:36]}  Bh5 {[%clk 0:02:57]} 7. Bd3 {[%clk 0:02:34]}  Nf6 {[%clk 0:02:57]} 8. e5 {[%clk 0:02:34]}  Nfd7 {[%clk 0:02:56]} 9. O-O {[%clk 0:02:34]}  c5 {[%clk 0:02:54]} 10. g4 {[%clk 0:02:33]}  Bg6 {[%clk 0:02:53]} 11. Bxg6 {[%clk 0:02:33]}  hxg6 {[%clk 0:02:54]} 12. dxc5 {[%clk 0:02:33]}  Nc6 {[%clk 0:02:43]} 13. Kg2 {[%clk 0:02:31]}  Bxc5 {[%clk 0:02:41]} 14. Bxc5 {[%clk 0:02:29]}  Nxc5 {[%clk 0:02:39]} 15. Qe2 {[%clk 0:02:29]}  Qb6 {[%clk 0:02:36]} 16. Rab1 {[%clk 0:02:24]}  Nd7 {[%clk 0:02:32]} 17. Rfe1 {[%clk 0:02:17]}  Qb4 {[%clk 0:02:18]} 18. a3 {[%clk 0:02:12]}  Qf4 {[%clk 0:02:10]} 19. Rbd1 {[%clk 0:02:10]}  O-O-O {[%clk 0:02:06]} 20. Qe3 {[%clk 0:02:03]}  Qxe3 {[%clk 0:02:02]} 21. Rxe3 {[%clk 0:02:04]}  Nb6 {[%clk 0:02:01]} 22. Re2 {[%clk 0:01:59]}  Nc4 {[%clk 0:01:58]} 23. Rb1 {[%clk 0:01:49]}  b5 {[%clk 0:01:57]} 24. a4 {[%clk 0:01:48]}  b4 {[%clk 0:01:51]} 25. Nd1 {[%clk 0:01:46]}  Kb7 {[%clk 0:01:44]} 26. b3 {[%clk 0:01:46]}  Nb6 {[%clk 0:01:44]} 27. Nb2 {[%clk 0:01:44]}  a5 {[%clk 0:01:42]} 28. Nd3 {[%clk 0:01:44]}  Rc8 {[%clk 0:01:41]} 29. Rd1 {[%clk 0:01:23]}  Rc7 {[%clk 0:01:40]} 30. Nde1 {[%clk 0:01:23]}  Nd7 {[%clk 0:01:30]} 31. Kg3 {[%clk 0:01:23]}  Nc5 {[%clk 0:01:30]} 32. Ng5 {[%clk 0:01:22]}  Nb8 {[%clk 0:01:20]} 33. Nef3 {[%clk 0:01:18]}  Nc6 {[%clk 0:01:15]} 34. h4 {[%clk 0:01:14]}  Re8 {[%clk 0:01:14]} 35. Nd4 {[%clk 0:01:12]}  Nxd4 {[%clk 0:01:12]} 36. Rxd4 {[%clk 0:01:12]}  f6 {[%clk 0:01:07]} 37. Nf3 {[%clk 0:01:11]}  Ne4+ {[%clk 0:01:06]} 38. Kg2 {[%clk 0:01:10]}  f5 {[%clk 0:01:04]} 39. gxf5 {[%clk 0:01:03]}  gxf5 {[%clk 0:01:04]} 40. Ne1 {[%clk 0:01:04]}  Rh8 {[%clk 0:00:58]} 41. f3 {[%clk 0:01:04]}  Nc3 {[%clk 0:00:56]} 42. Rf2 {[%clk 0:01:04]}  Kb6 {[%clk 0:00:51]} 43. Nd3 {[%clk 0:01:03]}  Nd1 {[%clk 0:00:51]} 44. Re2 {[%clk 0:01:02]}  Rxc2 {[%clk 0:00:49]} 45. Nf4 {[%clk 0:00:55]}  Rxe2+ {[%clk 0:00:34]} 46. Nxe2 {[%clk 0:00:56]}  Nc3 {[%clk 0:00:34]} 47. Nf4 {[%clk 0:00:54]}  Rh6 {[%clk 0:00:34]} 48. h5 {[%clk 0:00:53]}  Kc5 {[%clk 0:00:32]} 49. Rd3 {[%clk 0:00:53]}  d4 {[%clk 0:00:30]} 50. Kg3 {[%clk 0:00:52]}  Nd5 {[%clk 0:00:29]} 51. Ne2 {[%clk 0:00:40]}  Rxh5 {[%clk 0:00:28]} 52. f4 {[%clk 0:00:34]}  g5 {[%clk 0:00:26]} 53. fxg5 {[%clk 0:00:30]}  Rxg5+ {[%clk 0:00:25]} 54. Kf3 {[%clk 0:00:30]}  Rg4 {[%clk 0:00:26]} 55. Rd1 {[%clk 0:00:30]}  Re4 {[%clk 0:00:24]} 0-1


[Site "https://www.chess.com"]

[Event "Titled Tuesday Blitz August 23 Early 2022"]
[White "Weetik, Vjacheslav"]
[Black "Jakubowska, Anna"]
[WhiteFideId "4153472"]
[BlackFideId "1121952"]
[WhiteElo "2469"]
[BlackElo "1839"]
[Result "1-0"]
[Round "03"]
[TimeControl "180+1"]
[Date "2022.08.23"]
[WhiteClock "0:02:29"]
[BlackClock "0:01:49"]

1. d4 {[%clk 0:02:51]}  d5 {[%clk 0:02:59]} 2. Bf4 {[%clk 0:02:50]}  Nf6 {[%clk 0:02:58]} 3. e3 {[%clk 0:02:50]}  c5 {[%clk 0:02:58]} 4. c3 {[%clk 0:02:51]}  Nc6 {[%clk 0:02:58]} 5. Nd2 {[%clk 0:02:51]}  e6 {[%clk 0:02:53]} 6. Bd3 {[%clk 0:02:51]}  Bd6 {[%clk 0:02:52]} 7. Bxd6 {[%clk 0:02:51]}  Qxd6 {[%clk 0:02:52]} 8. f4 {[%clk 0:02:52]}  c4 {[%clk 0:02:49]} 9. Bc2 {[%clk 0:02:51]}  b5 {[%clk 0:02:49]} 10. a3 {[%clk 0:02:51]}  O-O {[%clk 0:02:46]} 11. Ngf3 {[%clk 0:02:51]}  a5 {[%clk 0:02:45]} 12. O-O {[%clk 0:02:47]}  Ra7 {[%clk 0:02:38]} 13. Ne5 {[%clk 0:02:43]}  Bb7 {[%clk 0:02:28]} 14. Rf3 {[%clk 0:02:37]}  Rfa8 {[%clk 0:02:16]} 15. Rh3 {[%clk 0:02:34]}  b4 {[%clk 0:02:12]} 16. Bxh7+ {[%clk 0:02:31]}  Nxh7 {[%clk 0:02:11]} 17. Qh5 {[%clk 0:02:31]}  bxc3 {[%clk 0:01:51]} 18. Qxf7+ {[%clk 0:02:28]}  Kh8 {[%clk 0:01:49]} 19. Ng6# {[%clk 0:02:29]} 1-0


[Site "https://www.chess.com"]

[Event "Titled Tuesday Blitz August 23 Early 2022"]
[White "Aldokhin, Ivan"]
[Black "Shirov, Alexei"]
[WhiteFideId "24115720"]
[BlackFideId "2209390"]
[WhiteElo "2246"]
[BlackElo "2678"]
[Result "0-1"]
[Round "04"]
[TimeControl "180+1"]
[Date "2022.08.23"]
[WhiteClock "0:00:02"]
[BlackClock "0:01:06"]

1. e4 {[%clk 0:03:00]}  e5 {[%clk 0:02:58]} 2. Nf3 {[%clk 0:03:01]}  Nc6 {[%clk 0:02:58]} 3. Bb5 {[%clk 0:03:01]}  a6 {[%clk 0:02:58]} 4. Ba4 {[%clk 0:03:02]}  Nf6 {[%clk 0:02:58]} 5. O-O {[%clk 0:03:02]}  b5 {[%clk 0:02:57]} 6. Bb3 {[%clk 0:03:02]}  Bc5 {[%clk 0:02:57]} 7. Nxe5 {[%clk 0:03:01]}  Nxe5 {[%clk 0:02:57]} 8. d4 {[%clk 0:03:01]}  Bxd4 {[%clk 0:02:57]} 9. Qxd4 {[%clk 0:03:02]}  d6 {[%clk 0:02:57]} 10. f4 {[%clk 0:03:02]}  Nc6 {[%clk 0:02:56]} 11. Qc3 {[%clk 0:03:02]}  Ne7 {[%clk 0:02:54]} 12. e5 {[%clk 0:02:59]}  Ne4 {[%clk 0:02:39]} 13. Qe1 {[%clk 0:02:36]}  Nc5 {[%clk 0:02:33]} 14. f5 {[%clk 0:02:25]}  Nxb3 {[%clk 0:02:22]} 15. axb3 {[%clk 0:02:19]}  Nxf5 {[%clk 0:02:21]} 16. exd6+ {[%clk 0:02:15]}  Kf8 {[%clk 0:02:15]} 17. dxc7 {[%clk 0:02:05]}  Qxc7 {[%clk 0:02:13]} 18. Nc3 {[%clk 0:02:03]}  Qc5+ {[%clk 0:01:59]} 19. Kh1 {[%clk 0:01:54]}  Bb7 {[%clk 0:01:58]} 20. Qf2 {[%clk 0:00:52]}  Qxf2 {[%clk 0:01:50]} 21. Rxf2 {[%clk 0:00:52]}  g6 {[%clk 0:01:45]} 22. Bg5 {[%clk 0:00:28]}  Kg7 {[%clk 0:01:44]} 23. Kg1 {[%clk 0:00:26]}  h6 {[%clk 0:01:43]} 24. Bf4 {[%clk 0:00:26]}  Rhe8 {[%clk 0:01:43]} 25. Rd1 {[%clk 0:00:17]}  Rad8 {[%clk 0:01:37]} 26. Rxd8 {[%clk 0:00:15]}  Rxd8 {[%clk 0:01:36]} 27. Rd2 {[%clk 0:00:15]}  Rxd2 {[%clk 0:01:33]} 28. Bxd2 {[%clk 0:00:15]}  Nd4 {[%clk 0:01:32]} 29. Na2 {[%clk 0:00:09]}  Nxc2 {[%clk 0:01:30]} 30. Nb4 {[%clk 0:00:09]}  Na1 {[%clk 0:01:29]} 31. Bc3+ {[%clk 0:00:07]}  f6 {[%clk 0:01:28]} 32. Nd3 {[%clk 0:00:06]}  Nxb3 {[%clk 0:01:27]} 33. Nf4 {[%clk 0:00:06]}  Kf7 {[%clk 0:01:26]} 34. h4 {[%clk 0:00:07]}  a5 {[%clk 0:01:22]} 35. h5 {[%clk 0:00:07]}  g5 {[%clk 0:01:21]} 36. Nd3 {[%clk 0:00:04]}  b4 {[%clk 0:01:21]} 37. Nxb4 {[%clk 0:00:03]}  axb4 {[%clk 0:01:20]} 38. Bxb4 {[%clk 0:00:04]}  Bc8 {[%clk 0:01:17]} 39. Bc3 {[%clk 0:00:04]}  Bg4 {[%clk 0:01:17]} 40. Kf2 {[%clk 0:00:05]}  Bxh5 {[%clk 0:01:17]} 41. Ke3 {[%clk 0:00:06]}  Bg6 {[%clk 0:01:17]} 42. g3 {[%clk 0:00:04]}  Ke6 {[%clk 0:01:16]} 43. Kf3 {[%clk 0:00:04]}  h5 {[%clk 0:01:16]} 44. Ke3 {[%clk 0:00:04]}  f5 {[%clk 0:01:16]} 45. Kf3 {[%clk 0:00:04]}  Kd5 {[%clk 0:01:14]} 46. Bf6 {[%clk 0:00:03]}  g4+ {[%clk 0:01:12]} 47. Kf4 {[%clk 0:00:03]}  Nc5 {[%clk 0:01:12]} 48. Kg5 {[%clk 0:00:02]}  Ne4+ {[%clk 0:01:06]} 0-1


[Site "https://www.chess.com"]

[Event "Titled Tuesday Blitz August 23 Early 2022"]
[White "Bachmann, Axel"]
[Black "Zhigalko, Sergei"]
[WhiteFideId "3700488"]
[BlackFideId "13502956"]
[WhiteElo "2595"]
[BlackElo "2662"]
[Result "0-1"]
[Round "04"]
[TimeControl "180+1"]
[Date "2022.08.23"]
[WhiteClock "0:00:04"]
[BlackClock "0:00:03"]

1. Nf3 {[%clk 0:02:58]}  d5 {[%clk 0:02:56]} 2. e3 {[%clk 0:02:58]}  Nf6 {[%clk 0:02:55]} 3. c4 {[%clk 0:02:58]}  e6 {[%clk 0:02:55]} 4. b3 {[%clk 0:02:58]}  b6 {[%clk 0:02:55]} 5. Bb2 {[%clk 0:02:54]}  Bb7 {[%clk 0:02:56]} 6. cxd5 {[%clk 0:02:54]}  exd5 {[%clk 0:02:56]} 7. Nc3 {[%clk 0:02:54]}  Bd6 {[%clk 0:02:52]} 8. Rc1 {[%clk 0:02:53]}  a6 {[%clk 0:02:52]} 9. Ne2 {[%clk 0:02:53]}  O-O {[%clk 0:02:51]} 10. Ned4 {[%clk 0:02:50]}  Re8 {[%clk 0:02:51]} 11. Qc2 {[%clk 0:02:34]}  c5 {[%clk 0:02:42]} 12. Nf5 {[%clk 0:02:34]}  Bf8 {[%clk 0:02:43]} 13. Be2 {[%clk 0:02:34]}  d4 {[%clk 0:02:35]} 14. Ng3 {[%clk 0:02:35]}  Nc6 {[%clk 0:02:32]} 15. a3 {[%clk 0:02:32]}  Qd7 {[%clk 0:02:24]} 16. O-O {[%clk 0:02:25]}  Rad8 {[%clk 0:02:24]} 17. Bd3 {[%clk 0:02:03]}  g6 {[%clk 0:01:46]} 18. Rcd1 {[%clk 0:01:56]}  b5 {[%clk 0:01:37]} 19. Ne4 {[%clk 0:01:39]}  Nxe4 {[%clk 0:01:23]} 20. Bxe4 {[%clk 0:01:39]}  d3 {[%clk 0:00:49]} 21. Qc3 {[%clk 0:01:30]}  Nd4 {[%clk 0:00:49]} 22. exd4 {[%clk 0:01:20]}  b4 {[%clk 0:00:49]} 23. axb4 {[%clk 0:00:54]}  cxb4 {[%clk 0:00:46]} 24. Qxd3 {[%clk 0:00:53]}  Bxe4 {[%clk 0:00:44]} 25. Qe3 {[%clk 0:00:54]}  Bd5 {[%clk 0:00:13]} 26. Ne5 {[%clk 0:00:53]}  Qe6 {[%clk 0:00:09]} 27. Qf4 {[%clk 0:00:35]}  Bg7 {[%clk 0:00:05]} 28. Rde1 {[%clk 0:00:31]}  Qf6 {[%clk 0:00:01]} 29. Qg3 {[%clk 0:00:31]}  Qf5 {[%clk 0:00:02]} 30. h3 {[%clk 0:00:23]}  Qc2 {[%clk 0:00:01]} 31. Ba1 {[%clk 0:00:16]}  a5 {[%clk 0:00:02]} 32. Re3 {[%clk 0:00:14]}  Qxd2 {[%clk 0:00:02]} 33. Rfe1 {[%clk 0:00:12]}  Qc2 {[%clk 0:00:02]} 34. Nc4 {[%clk 0:00:04]}  Rxe3 {[%clk 0:00:03]} 35. Nxe3 {[%clk 0:00:04]}  Qxb3 {[%clk 0:00:02]} 36. Qh4 {[%clk 0:00:05]}  Rf8 {[%clk 0:00:02]} 37. Qg5 {[%clk 0:00:04]}  Be4 {[%clk 0:00:02]} 38. Qxa5 {[%clk 0:00:05]}  Bd3 {[%clk 0:00:01]} 39. Qb6 {[%clk 0:00:04]}  h6 {[%clk 0:00:01]} 40. d5 {[%clk 0:00:04]}  Bc3 {[%clk 0:00:01]} 41. Bxc3 {[%clk 0:00:04]}  Qxc3 {[%clk 0:00:02]} 42. d6 {[%clk 0:00:04]}  Qxe1+ {[%clk 0:00:02]} 43. Kh2 {[%clk 0:00:04]}  Qxf2 {[%clk 0:00:03]} 0-1


[Site "https://www.chess.com"]

[Event "Titled Tuesday Blitz August 23 Early 2022"]
[White "Belov, Vladimir"]
[Black "Aggelis, Nikolaos"]
[WhiteFideId "4132394"]
[BlackFideId "4213220"]
[WhiteElo "2501"]
[BlackElo "2154"]
[Result "1-0"]
[Round "04"]
[TimeControl "180+1"]
[Date "2022.08.23"]
[WhiteClock "0:02:42"]
[BlackClock "0:02:40"]

1. e4 {[%clk 0:03:00]}  e5 {[%clk 0:02:52]} 2. Nf3 {[%clk 0:03:00]}  Nc6 {[%clk 0:02:52]} 3. Bb5 {[%clk 0:03:00]}  a6 {[%clk 0:02:50]} 4. Ba4 {[%clk 0:03:00]}  Nf6 {[%clk 0:02:50]} 5. O-O {[%clk 0:03:00]}  Be7 {[%clk 0:02:50]} 6. Re1 {[%clk 0:03:00]}  b5 {[%clk 0:02:49]} 7. Bb3 {[%clk 0:03:00]}  d6 {[%clk 0:02:50]} 8. c3 {[%clk 0:03:00]}  Bg4 {[%clk 0:02:45]} 9. h3 {[%clk 0:02:59]}  Bxf3 {[%clk 0:02:44]} 10. Qxf3 {[%clk 0:02:59]}  O-O {[%clk 0:02:42]} 11. d3 {[%clk 0:02:56]}  Re8 {[%clk 0:02:41]} 12. Nd2 {[%clk 0:02:55]}  Bf8 {[%clk 0:02:41]} 13. Nf1 {[%clk 0:02:55]}  g6 {[%clk 0:02:42]} 14. Bg5 {[%clk 0:02:51]}  Bg7 {[%clk 0:02:40]} 15. Bd5 {[%clk 0:02:42]} 1-0


[Site "https://www.chess.com"]

[Event "Titled Tuesday Blitz August 23 Early 2022"]
[White "Buscar, Michael"]
[Black "Livaic, Leon"]
[WhiteFideId "2603616"]
[BlackFideId "14531534"]
[WhiteElo "2010"]
[BlackElo "2540"]
[Result "0-1"]
[Round "04"]
[TimeControl "180+1"]
[Date "2022.08.23"]
[WhiteClock "0:00:03"]
[BlackClock "0:01:10"]

1. Nf3 {[%clk 0:02:59]}  Nf6 {[%clk 0:02:59]} 2. g3 {[%clk 0:02:57]}  b6 {[%clk 0:03:00]} 3. d3 {[%clk 0:02:57]}  Bb7 {[%clk 0:03:01]} 4. e4 {[%clk 0:02:57]}  e6 {[%clk 0:03:01]} 5. Bg2 {[%clk 0:02:56]}  d6 {[%clk 0:03:00]} 6. Nc3 {[%clk 0:02:50]}  g6 {[%clk 0:03:00]} 7. h4 {[%clk 0:02:49]}  h6 {[%clk 0:03:00]} 8. Bf4 {[%clk 0:02:43]}  Bg7 {[%clk 0:03:00]} 9. Qd2 {[%clk 0:02:43]}  Nbd7 {[%clk 0:02:59]} 10. a4 {[%clk 0:02:38]}  a6 {[%clk 0:02:59]} 11. O-O {[%clk 0:02:17]}  Qe7 {[%clk 0:02:58]} 12. Ne2 {[%clk 0:02:13]}  e5 {[%clk 0:02:53]} 13. Be3 {[%clk 0:02:13]}  Ng4 {[%clk 0:02:53]} 14. a5 {[%clk 0:02:07]}  b5 {[%clk 0:02:51]} 15. Nh2 {[%clk 0:01:57]}  Nxe3 {[%clk 0:02:49]} 16. Qxe3 {[%clk 0:01:45]}  h5 {[%clk 0:02:48]} 17. c3 {[%clk 0:01:19]}  Bh6 {[%clk 0:02:38]} 18. Qf3 {[%clk 0:01:16]}  f5 {[%clk 0:02:36]} 19. Rfe1 {[%clk 0:01:10]}  O-O {[%clk 0:02:35]} 20. Bh3 {[%clk 0:00:55]}  fxe4 {[%clk 0:02:33]} 21. Qg2 {[%clk 0:00:55]}  e3 {[%clk 0:02:04]} 22. f3 {[%clk 0:00:35]}  Nc5 {[%clk 0:02:03]} 23. Rad1 {[%clk 0:00:34]}  Kh7 {[%clk 0:01:48]} 24. d4 {[%clk 0:00:35]}  Na4 {[%clk 0:01:48]} 25. dxe5 {[%clk 0:00:29]}  Qxe5 {[%clk 0:01:46]} 26. Nd4 {[%clk 0:00:28]}  Rae8 {[%clk 0:01:40]} 27. Qc2 {[%clk 0:00:26]}  Qxg3+ {[%clk 0:01:38]} 28. Bg2 {[%clk 0:00:22]}  Bf4 {[%clk 0:01:27]} 29. Nf1 {[%clk 0:00:22]}  Qxh4 {[%clk 0:01:27]} 30. Re2 {[%clk 0:00:12]}  Re5 {[%clk 0:01:17]} 31. Rde1 {[%clk 0:00:09]}  Nc5 {[%clk 0:01:16]} 32. Rxe3 {[%clk 0:00:08]}  Bxe3+ {[%clk 0:01:15]} 33. Rxe3 {[%clk 0:00:08]}  Rxe3 {[%clk 0:01:14]} 34. Nxe3 {[%clk 0:00:08]}  Qe1+ {[%clk 0:01:14]} 35. Nf1 {[%clk 0:00:08]}  Ne6 {[%clk 0:01:10]} 36. Nxe6 {[%clk 0:00:04]}  Qxe6 {[%clk 0:01:11]} 37. Qd2 {[%clk 0:00:04]}  Bxf3 {[%clk 0:01:09]} 38. Bxf3 {[%clk 0:00:03]}  Rxf3 {[%clk 0:01:10]} 39. Qg2 {[%clk 0:00:03]}  Qg4 {[%clk 0:01:10]} 40. Qxg4 {[%clk 0:00:02]}  hxg4 {[%clk 0:01:11]} 41. Kg2 {[%clk 0:00:03]}  Rxf1 {[%clk 0:01:10]} 42. Kxf1 {[%clk 0:00:03]}  Kh6 {[%clk 0:01:10]} 0-1


[Site "https://www.chess.com"]